[Event "Titled Tuesday Blitz May 17 Late 2022"]
[White "Dardha, Daniel"]
[Black "Indjic, Aleksandar"]
[WhiteFideId "240990"]
[BlackFideId "911925"]
[WhiteElo "2482"]
[BlackElo "2616"]
[Result "0-1"]
[Round "07"]
[TimeControl "180+1"]
[Date "2022.05.17"]
[WhiteClock "0:00:01"]
[BlackClock "0:00:07"]

1. e4 {[%clk 0:03:00]}  d5 {[%clk 0:02:58]} 2. exd5 {[%clk 0:03:00]}  Qxd5 {[%clk 0:02:59]} 3. Nc3 {[%clk 0:02:55]}  Qd6 {[%clk 0:02:58]} 4. d4 {[%clk 0:02:53]}  Nf6 {[%clk 0:02:59]} 5. Nf3 {[%clk 0:02:52]}  a6 {[%clk 0:02:59]} 6. g3 {[%clk 0:02:50]}  g6 {[%clk 0:02:57]} 7. Bg2 {[%clk 0:02:47]}  Bg7 {[%clk 0:02:56]} 8. O-O {[%clk 0:02:46]}  O-O {[%clk 0:02:56]} 9. Bf4 {[%clk 0:02:43]}  Qd8 {[%clk 0:02:55]} 10. Re1 {[%clk 0:02:35]}  c6 {[%clk 0:02:53]} 11. Ne5 {[%clk 0:02:27]}  Nbd7 {[%clk 0:02:51]} 12. Qe2 {[%clk 0:02:25]}  e6 {[%clk 0:02:50]} 13. a4 {[%clk 0:02:18]}  Nd5 {[%clk 0:02:49]} 14. Bd2 {[%clk 0:02:13]}  Nxc3 {[%clk 0:02:45]} 15. Bxc3 {[%clk 0:02:06]}  Nf6 {[%clk 0:02:41]} 16. a5 {[%clk 0:01:56]}  Re8 {[%clk 0:02:39]} 17. Rad1 {[%clk 0:01:50]}  Qc7 {[%clk 0:02:27]} 18. Bd2 {[%clk 0:01:48]}  h6 {[%clk 0:02:23]} 19. h4 {[%clk 0:01:47]}  c5 {[%clk 0:02:04]} 20. dxc5 {[%clk 0:01:45]}  Qxc5 {[%clk 0:02:03]} 21. Nc4 {[%clk 0:01:45]}  e5 {[%clk 0:01:48]} 22. Be3 {[%clk 0:01:35]}  Qe7 {[%clk 0:01:32]} 23. Rd6 {[%clk 0:00:59]}  Bg4 {[%clk 0:01:27]} 24. Qd3 {[%clk 0:00:59]}  e4 {[%clk 0:01:25]} 25. Qb3 {[%clk 0:00:52]}  Bf3 {[%clk 0:01:23]} 26. Bd4 {[%clk 0:00:42]}  Bxg2 {[%clk 0:01:22]} 27. Kxg2 {[%clk 0:00:43]}  Rad8 {[%clk 0:01:20]} 28. Bc5 {[%clk 0:00:27]}  Rc8 {[%clk 0:01:04]} 29. Bb4 {[%clk 0:00:19]}  Qc7 {[%clk 0:01:02]} 30. Ne3 {[%clk 0:00:18]}  h5 {[%clk 0:00:29]} 31. Red1 {[%clk 0:00:16]}  Rcd8 {[%clk 0:00:28]} 32. Rxd8 {[%clk 0:00:12]}  Rxd8 {[%clk 0:00:29]} 33. Qc4 {[%clk 0:00:11]}  Qb8 {[%clk 0:00:26]} 34. Rd4 {[%clk 0:00:08]}  Rc8 {[%clk 0:00:23]} 35. Qe2 {[%clk 0:00:08]}  Re8 {[%clk 0:00:23]} 36. Qd1 {[%clk 0:00:07]}  Qc8 {[%clk 0:00:22]} 37. Bc3 {[%clk 0:00:07]}  Ng4 {[%clk 0:00:17]} 38. Nxg4 {[%clk 0:00:07]}  hxg4 {[%clk 0:00:15]} 39. Qd2 {[%clk 0:00:06]}  e3 {[%clk 0:00:15]} 40. fxe3 {[%clk 0:00:05]}  Qc6+ {[%clk 0:00:14]} 41. Rd5 {[%clk 0:00:03]}  Bxc3 {[%clk 0:00:13]} 42. bxc3 {[%clk 0:00:04]}  Qe6 {[%clk 0:00:11]} 43. Qd4 {[%clk 0:00:03]}  Qxe3 {[%clk 0:00:10]} 44. Qxe3 {[%clk 0:00:03]}  Rxe3 {[%clk 0:00:11]} 45. Rc5 {[%clk 0:00:03]}  Re2+ {[%clk 0:00:11]} 46. Kf1 {[%clk 0:00:04]}  Rxc2 {[%clk 0:00:12]} 47. Rc7 {[%clk 0:00:05]}  Ra2 {[%clk 0:00:11]} 48. Rxb7 {[%clk 0:00:04]}  Rxa5 {[%clk 0:00:12]} 49. Rb4 {[%clk 0:00:05]}  f5 {[%clk 0:00:12]} 50. Rb6 {[%clk 0:00:04]}  Kg7 {[%clk 0:00:12]} 51. Kf2 {[%clk 0:00:04]}  Ra3 {[%clk 0:00:11]} 52. c4 {[%clk 0:00:03]}  a5 {[%clk 0:00:12]} 53. c5 {[%clk 0:00:04]}  Ra2+ {[%clk 0:00:12]} 54. Ke3 {[%clk 0:00:03]}  Ra3+ {[%clk 0:00:11]} 55. Kf4 {[%clk 0:00:04]}  Rf3+ {[%clk 0:00:11]} 56. Kg5 {[%clk 0:00:05]}  Rxg3 {[%clk 0:00:11]} 57. Rb7+ {[%clk 0:00:05]}  Kf8 {[%clk 0:00:11]} 58. c6 {[%clk 0:00:05]}  Rc3 {[%clk 0:00:09]} 59. c7 {[%clk 0:00:03]}  Ke8 {[%clk 0:00:09]} 60. Kxg6 {[%clk 0:00:02]}  g3 {[%clk 0:00:09]} 61. Kf6 {[%clk 0:00:02]}  g2 {[%clk 0:00:08]} 62. Rb8+ {[%clk 0:00:02]}  Kd7 {[%clk 0:00:09]} 63. Rg8 {[%clk 0:00:03]}  Kxc7 {[%clk 0:00:08]} 64. Rxg2 {[%clk 0:00:03]}  Rh3 {[%clk 0:00:08]} 65. Kg5 {[%clk 0:00:03]}  f4 {[%clk 0:00:08]} 66. h5 {[%clk 0:00:03]}  f3 {[%clk 0:00:08]} 67. Rc2+ {[%clk 0:00:03]}  Kb6 {[%clk 0:00:08]} 68. Kg4 {[%clk 0:00:03]}  Rh1 {[%clk 0:00:08]} 69. Rc3 {[%clk 0:00:03]}  f2 {[%clk 0:00:08]} 70. Rb3+ {[%clk 0:00:03]}  Ka6 {[%clk 0:00:08]} 71. Rg3 {[%clk 0:00:01]}  f1=Q {[%clk 0:00:07]} 72. Kg5 {[%clk 0:00:01]}  Qg1 {[%clk 0:00:07]} 0-1


[Site "https://www.chess.com"]

[Event "Titled Tuesday Blitz May 17 Late 2022"]
[White "Fedoseev, Vladimir"]
[Black "Rustemov, Alexander"]
[WhiteFideId "24130737"]
[BlackFideId "4119002"]
[WhiteElo "2726"]
[BlackElo "2797"]
[Result "1/2-1/2"]
[Round "07"]
[TimeControl "180+1"]
[Date "2022.05.17"]
[WhiteClock "0:00:16"]
[BlackClock "0:00:06"]

1. Nf3 {[%clk 0:03:00]}  d5 {[%clk 0:02:59]} 2. g3 {[%clk 0:03:01]}  c6 {[%clk 0:02:59]} 3. Bg2 {[%clk 0:03:01]}  Bf5 {[%clk 0:03:00]} 4. O-O {[%clk 0:03:02]}  e6 {[%clk 0:03:00]} 5. d3 {[%clk 0:03:02]}  h6 {[%clk 0:03:00]} 6. Nbd2 {[%clk 0:03:03]}  Nf6 {[%clk 0:03:00]} 7. b3 {[%clk 0:03:03]}  Be7 {[%clk 0:03:00]} 8. Bb2 {[%clk 0:03:04]}  O-O {[%clk 0:03:00]} 9. Qe1 {[%clk 0:02:59]}  a5 {[%clk 0:03:00]} 10. e4 {[%clk 0:02:59]}  Bh7 {[%clk 0:03:00]} 11. a3 {[%clk 0:02:59]}  Qc7 {[%clk 0:02:57]} 12. Nd4 {[%clk 0:02:59]}  Nbd7 {[%clk 0:02:46]} 13. exd5 {[%clk 0:02:59]}  Nxd5 {[%clk 0:02:40]} 14. Ne4 {[%clk 0:02:56]}  N7f6 {[%clk 0:02:39]} 15. f4 {[%clk 0:02:54]}  Rfd8 {[%clk 0:02:37]} 16. f5 {[%clk 0:02:53]}  exf5 {[%clk 0:02:24]} 17. Nxf5 {[%clk 0:02:52]}  Bxf5 {[%clk 0:02:20]} 18. Rxf5 {[%clk 0:02:53]}  Nxe4 {[%clk 0:02:13]} 19. Bxe4 {[%clk 0:02:50]}  Bf6 {[%clk 0:02:08]} 20. Bxd5 {[%clk 0:02:49]}  Bxb2 {[%clk 0:01:59]} 21. Bxf7+ {[%clk 0:02:45]}  Kh8 {[%clk 0:01:58]} 22. Rb1 {[%clk 0:02:43]}  Bxa3 {[%clk 0:01:56]} 23. Qe4 {[%clk 0:02:40]}  b5 {[%clk 0:01:47]} 24. Rbf1 {[%clk 0:02:38]}  a4 {[%clk 0:01:42]} 25. bxa4 {[%clk 0:02:36]}  bxa4 {[%clk 0:01:41]} 26. Rh5 {[%clk 0:02:30]}  Qd6 {[%clk 0:01:38]} 27. Kg2 {[%clk 0:02:25]}  Bb2 {[%clk 0:01:33]} 28. Rf4 {[%clk 0:01:27]}  a3 {[%clk 0:01:31]} 29. Ba2 {[%clk 0:01:28]}  Rf8 {[%clk 0:01:22]} 30. Rfh4 {[%clk 0:01:23]}  Rf6 {[%clk 0:01:20]} 31. Qe3 {[%clk 0:01:16]}  Raf8 {[%clk 0:01:17]} 32. Re4 {[%clk 0:01:15]}  Kh7 {[%clk 0:00:41]} 33. Re6 {[%clk 0:01:07]}  Rxe6 {[%clk 0:00:39]} 34. Bxe6 {[%clk 0:01:08]}  Qd4 {[%clk 0:00:27]} 35. Qe2 {[%clk 0:01:06]}  Qf6 {[%clk 0:00:17]} 36. Rf5 {[%clk 0:00:41]}  Qd8 {[%clk 0:00:17]} 37. Qe4 {[%clk 0:00:34]}  Rxf5 {[%clk 0:00:16]} 38. Qxf5+ {[%clk 0:00:34]}  g6 {[%clk 0:00:14]} 39. Qf7+ {[%clk 0:00:33]}  Bg7 {[%clk 0:00:14]} 40. h4 {[%clk 0:00:33]}  h5 {[%clk 0:00:10]} 41. Kh3 {[%clk 0:00:32]}  Qf6 {[%clk 0:00:08]} 42. Qxf6 {[%clk 0:00:24]}  Bxf6 {[%clk 0:00:08]} 43. Kg2 {[%clk 0:00:24]}  Kg7 {[%clk 0:00:07]} 44. Kf3 {[%clk 0:00:24]}  Be5 {[%clk 0:00:07]} 45. g4 {[%clk 0:00:17]}  hxg4+ {[%clk 0:00:06]} 46. Kxg4 {[%clk 0:00:18]}  Kf6 {[%clk 0:00:06]} 47. Ba2 {[%clk 0:00:18]}  c5 {[%clk 0:00:06]} 48. Bb3 {[%clk 0:00:18]}  Bc3 {[%clk 0:00:06]} 49. Ba2 {[%clk 0:00:18]}  Be1 {[%clk 0:00:06]} 50. Bb3 {[%clk 0:00:19]}  Bd2 {[%clk 0:00:06]} 51. Ba2 {[%clk 0:00:19]}  Be1 {[%clk 0:00:06]} 52. Bb3 {[%clk 0:00:19]}  Bd2 {[%clk 0:00:06]} 53. Kf3 {[%clk 0:00:16]}  Be1 {[%clk 0:00:06]} 54. Kg4 {[%clk 0:00:16]} 1/2-1/2


[Site "https://www.chess.com"]

[Event "Titled Tuesday Blitz May 17 Late 2022"]
[White "Gallo Garcia, Kemel Antonio"]
[Black "Santos Ruiz, Miguel"]
[WhiteFideId "3523896"]
[BlackFideId "22291482"]
[WhiteElo "2359"]
[BlackElo "2486"]
[Result "1-0"]
[Round "07"]
[TimeControl "180+1"]
[Date "2022.05.17"]
[WhiteClock "0:00:12"]
[BlackClock "0:00:19"]

1. e4 {[%clk 0:03:00]}  c5 {[%clk 0:03:00]} 2. Nf3 {[%clk 0:03:00]}  a6 {[%clk 0:02:59]} 3. g3 {[%clk 0:03:00]}  Nf6 {[%clk 0:02:58]} 4. e5 {[%clk 0:02:57]}  Nd5 {[%clk 0:02:56]} 5. Bg2 {[%clk 0:02:57]}  d6 {[%clk 0:02:55]} 6. O-O {[%clk 0:02:53]}  e6 {[%clk 0:02:54]} 7. Nc3 {[%clk 0:02:46]}  Nxc3 {[%clk 0:02:53]} 8. bxc3 {[%clk 0:02:43]}  d5 {[%clk 0:02:41]} 9. d4 {[%clk 0:02:39]}  Nc6 {[%clk 0:02:41]} 10. a4 {[%clk 0:02:35]}  Be7 {[%clk 0:02:28]} 11. h4 {[%clk 0:02:32]}  h6 {[%clk 0:02:19]} 12. h5 {[%clk 0:02:23]}  Bd7 {[%clk 0:02:19]} 13. Be3 {[%clk 0:02:19]}  Qc7 {[%clk 0:02:11]} 14. Qd2 {[%clk 0:02:15]}  Na5 {[%clk 0:02:09]} 15. Bf4 {[%clk 0:02:11]}  Rc8 {[%clk 0:02:00]} 16. Rfc1 {[%clk 0:01:31]}  Nc4 {[%clk 0:01:40]} 17. Qe2 {[%clk 0:01:30]}  b5 {[%clk 0:01:37]} 18. Nd2 {[%clk 0:01:28]}  cxd4 {[%clk 0:01:33]} 19. cxd4 {[%clk 0:01:27]}  Nb2 {[%clk 0:01:33]} 20. axb5 {[%clk 0:01:22]}  Bxb5 {[%clk 0:01:34]} 21. Qg4 {[%clk 0:01:20]}  Kf8 {[%clk 0:01:27]} 22. c4 {[%clk 0:01:17]}  Nxc4 {[%clk 0:01:24]} 23. Nxc4 {[%clk 0:01:16]}  Bxc4 {[%clk 0:01:19]} 24. Bf1 {[%clk 0:01:16]}  Kg8 {[%clk 0:01:09]} 25. Rxa6 {[%clk 0:01:06]}  Kh7 {[%clk 0:01:01]} 26. Bxc4 {[%clk 0:00:40]}  dxc4 {[%clk 0:01:01]} 27. Qe2 {[%clk 0:00:32]}  Rhd8 {[%clk 0:00:54]} 28. Be3 {[%clk 0:00:31]}  Qb7 {[%clk 0:00:48]} 29. Ra4 {[%clk 0:00:28]}  c3 {[%clk 0:00:47]} 30. Qd3+ {[%clk 0:00:27]}  Kg8 {[%clk 0:00:46]} 31. Rxc3 {[%clk 0:00:27]}  Rxc3 {[%clk 0:00:46]} 32. Qxc3 {[%clk 0:00:28]}  Rc8 {[%clk 0:00:46]} 33. Rc4 {[%clk 0:00:27]}  Ra8 {[%clk 0:00:40]} 34. Qe1 {[%clk 0:00:26]}  Qf3 {[%clk 0:00:37]} 35. Rc7 {[%clk 0:00:15]}  Bf8 {[%clk 0:00:36]} 36. Rc1 {[%clk 0:00:15]}  Qxh5 {[%clk 0:00:36]} 37. Qd1 {[%clk 0:00:14]}  Qf5 {[%clk 0:00:33]} 38. Kg2 {[%clk 0:00:15]}  Ra2 {[%clk 0:00:30]} 39. Qf3 {[%clk 0:00:15]}  Qd3 {[%clk 0:00:26]} 40. Rc8 {[%clk 0:00:11]}  Ra1 {[%clk 0:00:24]} 41. d5 {[%clk 0:00:09]}  exd5 {[%clk 0:00:18]} 42. Bc5 {[%clk 0:00:08]}  Qf1+ {[%clk 0:00:16]} 43. Kh2 {[%clk 0:00:08]}  Qg1+ {[%clk 0:00:16]} 44. Kh3 {[%clk 0:00:08]}  Qb1 {[%clk 0:00:11]} 45. Rxf8+ {[%clk 0:00:07]}  Kh7 {[%clk 0:00:12]} 46. Rxf7 {[%clk 0:00:05]}  Qg6 {[%clk 0:00:12]} 47. Qf5 {[%clk 0:00:05]}  Rh1+ {[%clk 0:00:12]} 48. Kg2 {[%clk 0:00:05]}  Rc1 {[%clk 0:00:13]} 49. Qxg6+ {[%clk 0:00:05]}  Kxg6 {[%clk 0:00:14]} 50. Rc7 {[%clk 0:00:05]}  Rd1 {[%clk 0:00:14]} 51. Bd6 {[%clk 0:00:06]}  d4 {[%clk 0:00:14]} 52. Rc2 {[%clk 0:00:06]}  d3 {[%clk 0:00:14]} 53. Rc4 {[%clk 0:00:07]}  d2 {[%clk 0:00:14]} 54. Rd4 {[%clk 0:00:07]}  Kf5 {[%clk 0:00:15]} 55. Bb4 {[%clk 0:00:08]}  Kxe5 {[%clk 0:00:16]} 56. Rxd2 {[%clk 0:00:08]}  Rb1 {[%clk 0:00:17]} 57. Bc3+ {[%clk 0:00:08]}  Ke4 {[%clk 0:00:17]} 58. Bxg7 {[%clk 0:00:09]}  h5 {[%clk 0:00:16]} 59. Re2+ {[%clk 0:00:09]}  Kf5 {[%clk 0:00:17]} 60. Re3 {[%clk 0:00:10]}  Kg6 {[%clk 0:00:17]} 61. Bc3 {[%clk 0:00:10]}  Rb5 {[%clk 0:00:18]} 62. Be5 {[%clk 0:00:10]}  Kf5 {[%clk 0:00:18]} 63. Bf4 {[%clk 0:00:11]}  h4 {[%clk 0:00:19]} 64. Re5+ {[%clk 0:00:10]}  Rxe5 {[%clk 0:00:19]} 65. Bxe5 {[%clk 0:00:11]}  Kxe5 {[%clk 0:00:18]} 66. gxh4 {[%clk 0:00:12]}  Kf4 {[%clk 0:00:19]} 67. Kh3 {[%clk 0:00:12]} 1-0


[Site "https://www.chess.com"]

[Event "Titled Tuesday Blitz May 17 Late 2022"]
[White "Izoria, Zviad"]
[Black "Pinheiro, Iung Alicio de O."]
[WhiteFideId "13601733"]
[BlackFideId "2104350"]
[WhiteElo "2626"]
[BlackElo "2283"]
[Result "1-0"]
[Round "07"]
[TimeControl "180+1"]
[Date "2022.05.17"]
[WhiteClock "0:00:57"]
[BlackClock "0:00:15"]

1. Nf3 {[%clk 0:03:00]}  c5 {[%clk 0:02:59]} 2. e4 {[%clk 0:03:00]}  Nc6 {[%clk 0:02:57]} 3. Nc3 {[%clk 0:02:58]}  e5 {[%clk 0:02:56]} 4. Bc4 {[%clk 0:02:57]}  Be7 {[%clk 0:02:56]} 5. d3 {[%clk 0:02:57]}  d6 {[%clk 0:02:56]} 6. O-O {[%clk 0:02:50]}  Nf6 {[%clk 0:02:55]} 7. Bg5 {[%clk 0:02:49]}  Nd7 {[%clk 0:02:49]} 8. Bxe7 {[%clk 0:02:46]}  Qxe7 {[%clk 0:02:39]} 9. Nd5 {[%clk 0:02:44]}  Qd8 {[%clk 0:02:40]} 10. a4 {[%clk 0:02:43]}  Nb6 {[%clk 0:02:39]} 11. c3 {[%clk 0:02:31]}  O-O {[%clk 0:02:33]} 12. Nd2 {[%clk 0:02:29]}  Nxd5 {[%clk 0:02:28]} 13. Bxd5 {[%clk 0:02:28]}  Ne7 {[%clk 0:02:28]} 14. Ba2 {[%clk 0:02:25]}  Be6 {[%clk 0:02:26]} 15. Bxe6 {[%clk 0:02:23]}  fxe6 {[%clk 0:02:25]} 16. a5 {[%clk 0:02:22]}  Kh8 {[%clk 0:02:22]} 17. Nc4 {[%clk 0:02:18]}  Ng6 {[%clk 0:02:17]} 18. g3 {[%clk 0:02:18]}  d5 {[%clk 0:02:10]} 19. Ne3 {[%clk 0:02:17]}  Rc8 {[%clk 0:01:58]} 20. Qb3 {[%clk 0:02:15]}  c4 {[%clk 0:01:49]} 21. dxc4 {[%clk 0:02:13]}  d4 {[%clk 0:01:49]} 22. Rad1 {[%clk 0:02:09]}  Qf6 {[%clk 0:01:09]} 23. Nc2 {[%clk 0:02:05]}  Rfd8 {[%clk 0:01:05]} 24. Ne1 {[%clk 0:01:59]}  Rc7 {[%clk 0:00:56]} 25. cxd4 {[%clk 0:01:27]}  exd4 {[%clk 0:00:56]} 26. f4 {[%clk 0:01:27]}  e5 {[%clk 0:00:53]} 27. f5 {[%clk 0:01:27]}  Ne7 {[%clk 0:00:48]} 28. Nd3 {[%clk 0:01:26]}  Rdc8 {[%clk 0:00:47]} 29. Qb5 {[%clk 0:01:23]}  Rxc4 {[%clk 0:00:37]} 30. Qxe5 {[%clk 0:01:22]}  Nc6 {[%clk 0:00:35]} 31. Qf4 {[%clk 0:01:13]}  Re8 {[%clk 0:00:26]} 32. a6 {[%clk 0:01:13]}  b6 {[%clk 0:00:25]} 33. Rc1 {[%clk 0:01:13]}  Na5 {[%clk 0:00:19]} 34. e5 {[%clk 0:01:11]}  Qc6 {[%clk 0:00:19]} 35. e6 {[%clk 0:01:05]}  h6 {[%clk 0:00:18]} 36. Ne5 {[%clk 0:01:01]}  Qd5 {[%clk 0:00:15]} 37. Nxc4 {[%clk 0:01:00]}  Nxc4 {[%clk 0:00:16]} 38. Rcd1 {[%clk 0:00:58]}  Ne3 {[%clk 0:00:15]} 39. Qxe3 {[%clk 0:00:57]} 1-0


[Site "https://www.chess.com"]

[Event "Titled Tuesday Blitz May 17 Late 2022"]
[White "Jarocka, Liwia"]
[Black "Matinian, Nikita"]
[WhiteFideId "21807558"]
[BlackFideId "24129100"]
[WhiteElo "1887"]
[BlackElo "2422"]
[Result "0-1"]
[Round "07"]
[TimeControl "180+1"]
[Date "2022.05.17"]
[WhiteClock "0:00:02"]
[BlackClock "0:01:15"]

1. e4 {[%clk 0:02:58]}  c5 {[%clk 0:02:59]} 2. Nf3 {[%clk 0:02:55]}  Nc6 {[%clk 0:03:00]} 3. Bb5 {[%clk 0:02:50]}  g6 {[%clk 0:02:59]} 4. O-O {[%clk 0:02:44]}  Bg7 {[%clk 0:02:59]} 5. c3 {[%clk 0:02:38]}  Nf6 {[%clk 0:02:58]} 6. Re1 {[%clk 0:02:34]}  O-O {[%clk 0:02:58]} 7. d4 {[%clk 0:02:29]}  d5 {[%clk 0:02:56]} 8. e5 {[%clk 0:02:26]}  Ne4 {[%clk 0:02:55]} 9. Nbd2 {[%clk 0:02:20]}  Qb6 {[%clk 0:02:54]} 10. Bxc6 {[%clk 0:02:17]}  bxc6 {[%clk 0:02:52]} 11. Nxe4 {[%clk 0:02:13]}  dxe4 {[%clk 0:02:53]} 12. Rxe4 {[%clk 0:02:11]}  Bf5 {[%clk 0:02:53]} 13. Re3 {[%clk 0:02:04]}  Rab8 {[%clk 0:02:52]} 14. h3 {[%clk 0:01:54]}  Rfd8 {[%clk 0:02:52]} 15. g4 {[%clk 0:01:50]}  Be6 {[%clk 0:02:51]} 16. Rd3 {[%clk 0:01:44]}  Bd5 {[%clk 0:02:48]} 17. Ne1 {[%clk 0:01:23]}  cxd4 {[%clk 0:02:44]} 18. cxd4 {[%clk 0:01:23]}  c5 {[%clk 0:02:32]} 19. dxc5 {[%clk 0:01:13]}  Qxc5 {[%clk 0:02:33]} 20. Be3 {[%clk 0:01:09]}  Qa5 {[%clk 0:02:33]} 21. b4 {[%clk 0:01:02]}  Qb5 {[%clk 0:02:22]} 22. Rc1 {[%clk 0:00:44]}  e6 {[%clk 0:02:19]} 23. f4 {[%clk 0:00:34]}  Qxb4 {[%clk 0:02:18]} 24. Bxa7 {[%clk 0:00:32]}  Ra8 {[%clk 0:02:09]} 25. Bc5 {[%clk 0:00:32]}  Qe4 {[%clk 0:02:08]} 26. Qf3 {[%clk 0:00:21]}  Qa4 {[%clk 0:02:05]} 27. Qf2 {[%clk 0:00:18]}  Rac8 {[%clk 0:01:58]} 28. Be3 {[%clk 0:00:15]}  Rxc1 {[%clk 0:01:56]} 29. Bxc1 {[%clk 0:00:16]}  Rb8 {[%clk 0:01:53]} 30. Be3 {[%clk 0:00:14]}  Rb1 {[%clk 0:01:51]} 31. Kh2 {[%clk 0:00:14]}  Qe4 {[%clk 0:01:49]} 32. Rxd5 {[%clk 0:00:09]}  exd5 {[%clk 0:01:46]} 33. Nf3 {[%clk 0:00:08]}  h6 {[%clk 0:01:34]} 34. Kg3 {[%clk 0:00:08]}  Rd1 {[%clk 0:01:30]} 35. Nd2 {[%clk 0:00:08]}  Qd3 {[%clk 0:01:28]} 36. Qf3 {[%clk 0:00:06]}  Rxd2 {[%clk 0:01:26]} 37. Bxd2 {[%clk 0:00:06]}  Qxd2 {[%clk 0:01:27]} 38. Qf2 {[%clk 0:00:03]}  Qc3+ {[%clk 0:01:18]} 39. Qf3 {[%clk 0:00:03]}  Qc5 {[%clk 0:01:15]} 40. a4 {[%clk 0:00:02]}  g5 {[%clk 0:01:15]} 0-1


[Site "https://www.chess.com"]

[Event "Titled Tuesday Blitz May 17 Late 2022"]
[White "Khater, Sherif"]
[Black "Moroni, Luca Jr"]
[WhiteFideId "2034280"]
[BlackFideId "865834"]
[WhiteElo "2599"]
[BlackElo "2573"]
[Result "0-1"]
[Round "07"]
[TimeControl "180+1"]
[Date "2022.05.17"]
[WhiteClock "0:00:09"]
[BlackClock "0:00:15"]

1. b3 {[%clk 0:03:00]}  g6 {[%clk 0:03:00]} 2. Bb2 {[%clk 0:03:01]}  Nf6 {[%clk 0:02:44]} 3. e3 {[%clk 0:02:59]}  Bg7 {[%clk 0:02:39]} 4. Ne2 {[%clk 0:03:00]}  h5 {[%clk 0:02:36]} 5. h4 {[%clk 0:03:00]}  d5 {[%clk 0:02:32]} 6. Nf4 {[%clk 0:02:59]}  Nc6 {[%clk 0:02:30]} 7. c4 {[%clk 0:02:56]}  d4 {[%clk 0:02:24]} 8. b4 {[%clk 0:02:25]}  dxe3 {[%clk 0:02:19]} 9. fxe3 {[%clk 0:02:22]}  Nxb4 {[%clk 0:02:17]} 10. a3 {[%clk 0:02:19]}  Nc6 {[%clk 0:02:15]} 11. Nd5 {[%clk 0:02:12]}  O-O {[%clk 0:02:07]} 12. Bxf6 {[%clk 0:02:09]}  exf6 {[%clk 0:02:06]} 13. Nbc3 {[%clk 0:02:09]}  f5 {[%clk 0:02:03]} 14. Be2 {[%clk 0:01:52]}  Be6 {[%clk 0:02:02]} 15. Qc2 {[%clk 0:01:42]}  Be5 {[%clk 0:01:57]} 16. O-O-O {[%clk 0:01:40]}  b5 {[%clk 0:01:57]} 17. g4 {[%clk 0:01:37]}  fxg4 {[%clk 0:01:45]} 18. Rdf1 {[%clk 0:01:29]}  bxc4 {[%clk 0:01:41]} 19. Bxc4 {[%clk 0:01:26]}  Qd6 {[%clk 0:01:37]} 20. d4 {[%clk 0:01:12]}  Qxa3+ {[%clk 0:01:34]} 21. Kd2 {[%clk 0:01:11]}  Nxd4 {[%clk 0:01:30]} 22. exd4 {[%clk 0:01:10]}  Bxd4 {[%clk 0:01:31]} 23. Rf4 {[%clk 0:00:50]}  Qc5 {[%clk 0:01:19]} 24. Qd3 {[%clk 0:00:47]}  Bg7 {[%clk 0:01:12]} 25. Ne4 {[%clk 0:00:39]}  Qa5+ {[%clk 0:01:11]} 26. Ke2 {[%clk 0:00:38]}  Bxd5 {[%clk 0:01:11]} 27. Bxd5 {[%clk 0:00:37]}  Rad8 {[%clk 0:01:11]} 28. Bxf7+ {[%clk 0:00:37]}  Kh8 {[%clk 0:01:07]} 29. Qb3 {[%clk 0:00:28]}  Rb8 {[%clk 0:01:02]} 30. Qd3 {[%clk 0:00:21]}  Rxf7 {[%clk 0:01:01]} 31. Rxf7 {[%clk 0:00:21]}  Qa2+ {[%clk 0:01:00]} 32. Ke3 {[%clk 0:00:20]}  Qxf7 {[%clk 0:00:58]} 33. Ng5 {[%clk 0:00:21]}  Re8+ {[%clk 0:00:55]} 34. Kd2 {[%clk 0:00:21]}  Qa2+ {[%clk 0:00:52]} 35. Kd1 {[%clk 0:00:20]}  Qa1+ {[%clk 0:00:47]} 36. Kc2 {[%clk 0:00:20]}  Qb2+ {[%clk 0:00:31]} 37. Kd1 {[%clk 0:00:20]}  Qd4 {[%clk 0:00:31]} 38. Qxd4 {[%clk 0:00:18]}  Bxd4 {[%clk 0:00:32]} 39. Kc2 {[%clk 0:00:18]}  a5 {[%clk 0:00:31]} 40. Kd3 {[%clk 0:00:19]}  c5 {[%clk 0:00:30]} 41. Rb1 {[%clk 0:00:19]}  a4 {[%clk 0:00:30]} 42. Rb7 {[%clk 0:00:19]}  Ra8 {[%clk 0:00:29]} 43. Nf7+ {[%clk 0:00:19]}  Kg7 {[%clk 0:00:27]} 44. Ne5+ {[%clk 0:00:17]}  Kf6 {[%clk 0:00:24]} 45. Nd7+ {[%clk 0:00:11]}  Kf5 {[%clk 0:00:24]} 46. Nb6 {[%clk 0:00:12]}  a3 {[%clk 0:00:23]} 47. Nxa8 {[%clk 0:00:12]}  a2 {[%clk 0:00:23]} 48. Rf7+ {[%clk 0:00:11]}  Ke6 {[%clk 0:00:22]} 49. Ra7 {[%clk 0:00:10]}  a1=Q {[%clk 0:00:20]} 50. Rxa1 {[%clk 0:00:11]}  Bxa1 {[%clk 0:00:20]} 51. Nb6 {[%clk 0:00:10]}  Bf6 {[%clk 0:00:21]} 52. Na4 {[%clk 0:00:10]}  Kd6 {[%clk 0:00:19]} 53. Ke4 {[%clk 0:00:08]}  Bxh4 {[%clk 0:00:19]} 54. Nb6 {[%clk 0:00:09]}  Kc6 {[%clk 0:00:19]} 55. Nc4 {[%clk 0:00:10]}  Bf6 {[%clk 0:00:19]} 56. Ne3 {[%clk 0:00:10]}  Kb5 {[%clk 0:00:19]} 57. Nd5 {[%clk 0:00:11]}  Bg5 {[%clk 0:00:16]} 58. Kd3 {[%clk 0:00:09]}  h4 {[%clk 0:00:15]} 59. Ne3 {[%clk 0:00:09]}  Bxe3 {[%clk 0:00:15]} 0-1


[Site "https://www.chess.com"]

[Event "Titled Tuesday Blitz May 17 Late 2022"]
[White "Manukyan, Artyom"]
[Black "Ivanisevic, Ivan"]
[WhiteFideId "13305786"]
[BlackFideId "912417"]
[WhiteElo "2034"]
[BlackElo "2495"]
[Result "0-1"]
[Round "07"]
[TimeControl "180+1"]
[Date "2022.05.17"]
[WhiteClock "0:00:28"]
[BlackClock "0:01:44"]

1. e4 {[%clk 0:02:58]}  c5 {[%clk 0:02:59]} 2. Nc3 {[%clk 0:02:58]}  Nc6 {[%clk 0:02:58]} 3. Bb5 {[%clk 0:02:56]}  Nd4 {[%clk 0:02:59]} 4. Nf3 {[%clk 0:02:55]}  e6 {[%clk 0:02:48]} 5. O-O {[%clk 0:02:53]}  a6 {[%clk 0:02:48]} 6. Bd3 {[%clk 0:02:51]}  Nc6 {[%clk 0:02:46]} 7. b3 {[%clk 0:02:50]}  d6 {[%clk 0:02:41]} 8. Bb2 {[%clk 0:02:50]}  Be7 {[%clk 0:02:42]} 9. Re1 {[%clk 0:02:48]}  Bf6 {[%clk 0:02:39]} 10. e5 {[%clk 0:01:54]}  dxe5 {[%clk 0:02:38]} 11. Ne4 {[%clk 0:01:46]}  b6 {[%clk 0:02:37]} 12. Nxf6+ {[%clk 0:01:32]}  gxf6 {[%clk 0:02:38]} 13. Be4 {[%clk 0:01:31]}  Bb7 {[%clk 0:02:37]} 14. c3 {[%clk 0:01:30]}  Nge7 {[%clk 0:02:34]} 15. d4 {[%clk 0:01:28]}  f5 {[%clk 0:02:10]} 16. Bxc6+ {[%clk 0:01:25]}  Nxc6 {[%clk 0:02:11]} 17. Nxe5 {[%clk 0:01:18]}  Nxe5 {[%clk 0:02:10]} 18. dxe5 {[%clk 0:01:00]}  Rg8 {[%clk 0:02:10]} 19. g3 {[%clk 0:00:49]}  Qh4 {[%clk 0:02:00]} 20. Re3 {[%clk 0:00:39]}  Qh3 {[%clk 0:01:57]} 21. Qf1 {[%clk 0:00:33]}  Qh5 {[%clk 0:01:54]} 22. Rd1 {[%clk 0:00:32]}  f4 {[%clk 0:01:51]} 23. Red3 {[%clk 0:00:30]}  Be4 {[%clk 0:01:47]} 24. Rd6 {[%clk 0:00:28]}  Qf3 {[%clk 0:01:44]} 0-1


[Site "https://www.chess.com"]